[Event "GER-ch Youth-U16 2022"]
[Site "Willingen"]
[Date "2022.06.06"]
[Round "3.14"]
[White "Spriestersbach, Kai"]
[Black "Hecht, Jonas Christian"]
[Result "1-0"]
[ECO "B47"]
[WhiteElo "1948"]
[BlackElo "1884"]
[Annotator "TA"]
[PlyCount "85"]
[EventDate "2022.06.05"]
[EventType "swiss"]
[EventRounds "9"]
[EventCountry "GER"]
[SourceTitle "playchess.com"]
[Source "ChessBase"]
[SourceQuality "1"]
[TimeControl "40/4500+30:900+30"]

{[%evp 11,85,29,24,13,25,21,24,24,23,-9,-7,-7,0,-54,7,32,60,68,83,69,75,14,82,93,78,85,84,85,116,91,165,152,208,217,278,284,250,239,243,232,228,195,209,204,199,185,214,215,206,215,202,200,218,200,248,250,270,251,412,392,477,460,447,410,395,344,622,583,780,775,937,865,928,963,975,864]} 1. e4 {[%emt 0:00:00]} c5 {[%emt 0:00:00]} 2. Nf3 {[%emt 0:00:00]} e6 {[%emt 0:00:00]} 3. d4 {[%emt 0:00:00]} cxd4 {[%emt 0:00:00]} 4. Nxd4 {[%emt 0:00:00]} Nc6 {[%emt 0:00:00]} 5. Nc3 {[%emt 0:00:00]} Qc7 {[%emt 0:00:00]} 6. Be2 {[%emt 0:00:00]} Nf6 {[%emt 0:00:00]} 7. a3 {[%emt 0:00:00] B47: Sicilian: Taimanov: 5 Nc3 Qc7 6 f4, 6 g3 and 6 Be2.} Be7 {[%emt 0:00:00]} 8. f4 {[%emt 0:00:00]} d6 {[%emt 0:00:00]} 9. Be3 {[%emt 0:00:00] White has an edge.} O-O {[%emt 0:00:00]} 10. g4 {[%emt 0:04:04]} Nxd4 {[%emt 0:00:00]} 11. Qxd4 {[%emt 0:00:21] And now g5 would win.} e5 {[%emt 0:00:00]} 12. Qd2 {[%emt 0:10:07]} (12. Qd3 $11) 12... exf4 {[%emt 0:02:15]} (12... Nxg4 $15 13. O-O-O Nxe3 14. Qxe3 exf4 15. Qxf4 Be6) 13. Bxf4 $11 {[%emt 0:00:12] [#] Black must now prevent g5.} Nxg4 $146 {[%emt 0:00:32]} ({Predecessor:} 13... Be6 14. O-O-O Qa5 15. g5 Nd7 16. Kb1 Qc5 17. h4 Ne5 18. Nd5 Bxd5 19. Qxd5 Rfc8 {½-½ (54) Bellahcene,B (2512)-Kanarek,M (2484) Warsaw 2021}) 14. O-O-O $1 {[%emt 0:06:26] [#] aiming for Nd5.} Ne5 {[%emt 0:24:09]} 15. Nd5 {[%emt 0:10:08]} Qd8 {[%emt 0:00:32]} 16. Qb4 {[%emt 0:17:23]} (16. Rhg1 $16) 16... a5 {[%emt 0:10:01]} (16... Bg5 $11 {remains equal.}) 17. Nxe7+ $16 {[%emt 0:00:54][%mdl 64] [#] Remove Defender. White leaves nothing to chance now.} Qxe7 {[%emt 0:00:14]} 18. Qxd6 {[%emt 0:00:05]} Qxd6 {[%emt 0:00:33]} 19. Rxd6 {[%emt 0:00:06]} Ng6 {[%emt 0:01:54]} 20. Bg3 {[%emt 0:00:25] 0x0.002abb0ac827dp-1022s more active pieces. The black rooks are badly placed.} Be6 {[%emt 0:15:41]} (20... Ne7 $16) 21. Rhd1 {[%emt 0:01:51]} Ne7 {[%emt 0:06:11]} (21... Rfc8 $16 22. Rb6 Ra7) 22. Rb6 $18 {[%emt 0:05:07]} Nc6 {[%emt 0:11:30]} 23. Rxb7 {[%emt 0:01:05]} Rfd8 {[%emt 0:00:18]} 24. c3 {[%emt 0:03:48] Against Nd4} a4 {[%emt 0:03:38]} 25. Bc7 {[%emt 0:04:52] A strong pair of Bishops.} Rxd1+ {[%emt 0:03:26]} 26. Bxd1 {[%emt 0:00:15]} g5 {[%emt 0:00:04]} 27. Rb5 {[%emt 0:04:22]} h6 {[%emt 0:02:05]} 28. Rc5 {[%emt 0:00:38]} Ne7 {[%emt 0:02:31]} 29. Ra5 {[%emt 0:03:46]} Rxa5 {[%emt 0:01:58]} 30. Bxa5 {[%emt 0:00:05][%mdl 4096] Endgame KBB-KBN} Bd7 {[%emt 0:00:53]} 31. Kd2 {[%emt 0:03:23]} Ng6 {[%emt 0:00:35]} 32. Bc7 {[%emt 0:02:05] Against Ne5} f6 {[%emt 0:01:52]} 33. Ke3 {[%emt 0:03:19]} Kf7 {[%emt 0:00:12]} 34. Bh5 {[%emt 0:01:32]} g4 $2 {[%emt 0:00:43]} (34... Be8 35. Bd6 Ke6) 35. Kd4 {[%emt 0:01:28]} Kg7 {[%emt 0:00:15]} 36. Bg3 {[%emt 0:01:19]} f5 {[%emt 0:00:40]} 37. exf5 {[%emt 0:01:19]} Bxf5 {[%emt 0:00:08]} 38. Kc5 {[%emt 0:00:29]} Bd7 $2 {[%emt 0:00:12]} (38... Kf6 39. Kb5 Kg5) 39. Kd6 {[%emt 0:00:22] White is clearly winning.} Bf5 {[%emt 0:00:14]} 40. c4 {[%emt 0:00:17]} Nf8 {[%emt 0:01:01]} 41. Be5+ {[%emt 0:17:15]} Kg8 {[%emt 0:00:00]} 42. Be8 {[%emt 0:00:00]} Ng6 {[%emt 0:00:00]} 43. Bxa4 {[%emt 0:00:00] Weighted Error Value: White=0.15 (very precise) /Black=0.38} 1-0

[Event "GER-ch Youth-U16 2022"]
[Site "Willingen"]
[Date "2022.06.06"]
[Round "3.15"]
[White "Tovmasyan, Minas"]
[Black "Neuber, Pascal"]
[Result "1-0"]
[ECO "E15"]
[WhiteElo "1933"]
[BlackElo "1802"]
[Annotator "TA"]
[PlyCount "97"]
[EventDate "2022.06.05"]
[EventType "swiss"]
[EventRounds "9"]
[EventCountry "GER"]
[SourceTitle "playchess.com"]
[Source "ChessBase"]
[SourceQuality "1"]
[TimeControl "40/4500+30:900+30"]

{[%evp 12,97,16,22,16,9,9,11,12,15,27,4,53,56,70,74,65,57,65,64,64,64,107,101,161,150,152,152,152,153,160,170,167,166,173,163,153,14,14,14,6,17,81,81,213,214,169,85,417,421,652,652,889,820,883,350,29978,29979,29979,29980,29978,29979,29990,29983,29978,1910,1837,3104,2823,0,721,0,2020,660,29989,29990,29993,29994,29994,29995,29995,29995,29995,29996,29996,29997,29997,29998]} 1. d4 {[%emt 0:00:00]} Nf6 {[%emt 0:00:00]} 2. c4 {[%emt 0:00:00]} e6 {[%emt 0:00:00]} 3. Nf3 {[%emt 0:00:00]} b6 {[%emt 0:00:00]} 4. g3 {[%emt 0:00:00]} Bb7 {[%emt 0:00:00]} 5. Bg2 {[%emt 0:00:00]} g6 {[%emt 0:00:00]} 6. O-O {[%emt 0:00:00]} Bg7 {[%emt 0:00:00]} 7. Nc3 {[%emt 0:00:00]} Ne4 {[%emt 0:00:00] E16: Queen's Indian: 4 g3 Bb7 5 Bg2 Bb4+.} 8. Qd3 {[%emt 0:00:00]} Nxc3 {[%emt 0:00:00]} 9. Qxc3 {[%emt 0:00:00]} c5 {[%emt 0:00:00] The position is equal.} 10. Be3 {[%emt 0:00:00]} O-O {[%emt 0:00:00]} 11. Qd2 {[%emt 0:02:04] [#]} cxd4 $146 {[%emt 0:20:02]} (11... Qe7 $11) ({Predecessor:} 11... d6 12. Bh6 Nc6 13. Bxg7 Kxg7 14. Rfd1 Qf6 15. Ng5 Rad8 16. Ne4 Qe7 17. d5 Nd4 {½-½ (78) Martinez Rodriguez,P (2222)-Van der Werf,M (2422) Amsterdam 2002}) 12. Bxd4 $14 {[%emt 0:07:28]} d5 {[%emt 0:00:27]} 13. Bxg7 {[%emt 0:00:31]} Kxg7 {[%emt 0:00:02]} 14. Ne5 {[%emt 0:01:54]} Nd7 {[%emt 0:19:13]} 15. Nxd7 {[%emt 0:19:00] White is much more active.} ({Much weaker is} 15. Ng4 Nf6 16. Qh6+ Kg8 $11) 15... Qxd7 {[%emt 0:00:05]} 16. Rfd1 {[%emt 0:00:21]} Rfd8 {[%emt 0:03:33]} 17. cxd5 {[%emt 0:02:33]} Kg8 {[%emt 0:11:26]} (17... Qd6 $16 {is a better defense.}) 18. d6 $18 {[%emt 0:12:02]} Bxg2 {[%emt 0:02:22]} 19. Kxg2 {[%emt 0:00:19]} Rac8 {[%emt 0:00:38]} 20. Rac1 {[%emt 0:04:28]} Rc6 {[%emt 0:04:55]} 21. Rxc6 {[%emt 0:01:57]} Qxc6+ $16 {[%emt 0:00:07][%mdl 4096] Endgame KQR-KQR} 22. f3 {[%emt 0:00:38]} Rd7 {[%emt 0:01:56]} 23. e4 {[%emt 0:11:16]} e5 {[%emt 0:00:58]} 24. Qd5 {[%emt 0:07:02]} ({White should try} 24. Qd3 $16) 24... Qxd5 $11 {[%emt 0:07:41]} 25. Rxd5 {[%emt 0:00:08] KR-KR} f6 {[%emt 0:01:34]} 26. f4 {[%emt 0:00:59]} Kf7 {[%emt 0:01:46]} (26... exf4 $1 $11 {remains equal.} 27. gxf4 Kf7) 27. f5 $1 $16 {[%emt 0:06:04]} ({But not} 27. fxe5 fxe5 28. Rxe5 Rxd6 $11) 27... gxf5 {[%emt 0:00:01]} (27... g5 $16 {keeps fighting.}) 28. exf5 $18 {[%emt 0:00:07]} Ke8 {[%emt 0:00:23] [#]} 29. Kf3 {[%emt 0:01:11]} ({Better is} 29. Rd3 $1 $18) 29... Kd8 $2 {[%emt 0:00:38][%mdl 8192]} (29... Rg7 $16) 30. Rd3 {[%emt 0:06:23] Threatens to win with Ke4.} Rb7 {[%emt 0:04:05]} (30... Rg7 $142 31. Rc3 b5) 31. Ke4 {[%emt 0:01:55]} Kd7 {[%emt 0:01:11]} 32. g4 {[%emt 0:01:08]} Rb8 {[%emt 0:04:08]} 33. Kd5 $2 {[%emt 0:01:41]} (33. g5) 33... Rg8 $2 {[%emt 0:03:43]} (33... Rc8 $18 34. Rh3 Rc5+ 35. Ke4 Kxd6 36. Rxh7 Ra5) 34. Rc3 {[%emt 0:00:30]} Rxg4 {[%emt 0:00:18]} 35. Rc7+ {[%emt 0:00:03]} Kd8 {[%emt 0:00:14]} 36. Ke6 {[%emt 0:00:06]} Rg8 {[%emt 0:01:25]} 37. Kxf6 {[%emt 0:01:32]} e4 {[%emt 0:00:18]} 38. Ke6 {[%emt 0:00:38]} (38. Rxa7 $142 Rg2 39. Ke6 Kc8 40. d7+ Kb8 41. d8=Q+ Kxa7 42. f6 Rf2 43. f7) 38... e3 {[%emt 0:00:28]} 39. Rd7+ {[%emt 0:00:14]} Kc8 {[%emt 0:00:07]} 40. Rc7+ {[%emt 0:00:47]} (40. Re7 $142 e2 41. Kd5) 40... Kd8 {[%emt 0:00:59] Hoping for ...Re8+.} 41. Rd7+ {[%emt 0:00:00]} (41. Rxa7 $142 Re8+ 42. Kd5 (42. Kf7 Re5 $14) 42... Re5+ 43. Kc6 (43. Kxe5 e2 $11) 43... Rc5+ 44. Kxb6) 41... Kc8 {[%emt 0:00:00] [#]} 42. Re7 $1 {[%emt 0:00:00] d7+ would kill now.} Kd8 {[%emt 0:00:00]} 43. d7 {[%emt 0:05:09] White mates.} Rf8 {[%emt 0:07:08]} 44. Kd6 {[%emt 0:02:30]} Rf6+ {[%emt 0:01:05]} 45. Re6 {[%emt 0:00:08]} Rf8 {[%emt 0:00:53]} 46. Rxe3 {[%emt 0:00:16]} h5 {[%emt 0:00:13]} 47. Re6 {[%emt 0:00:33]} h4 {[%emt 0:00:24]} 48. f6 {[%emt 0:00:08][%cal Bf5f6,Bf6f7][%mdl 32]} b5 {[%emt 0:00:08]} 49. f7 {[%emt 0:00:07] Weighted Error Value: White=0.60/Black=0.59} 1-0

[Event "GER-ch Youth-U16 2022"]
[Site "Willingen"]
[Date "2022.06.06"]
[Round "3.16"]
[White "Weidenhoefer, Max"]
[Black "Guo, Philipp Ziming"]
[Result "1-0"]
[ECO "B90"]
[WhiteElo "1945"]
[BlackElo "1825"]
[Annotator "TA"]
[PlyCount "87"]
[EventDate "2022.06.05"]
[EventType "swiss"]
[EventRounds "9"]
[EventCountry "GER"]
[SourceTitle "playchess.com"]
[Source "ChessBase"]
[SourceQuality "1"]
[TimeControl "40/4500+30:900+30"]

{[%evp 11,87,16,29,31,31,33,43,27,32,-1,15,-1,0,8,0,-33,-6,-9,13,16,36,24,59,28,50,27,61,20,20,-46,-41,-33,-42,-41,304,308,291,287,303,299,278,298,277,276,300,295,298,275,297,288,355,355,358,362,386,377,400,356,385,366,517,456,527,492,735,735,689,673,647,435,856,856,853,684,838,845,733,755]} 1. e4 {[%emt 0:00:00]} c5 {[%emt 0:00:00]} 2. Nf3 {[%emt 0:00:00]} d6 {[%emt 0:00:00]} 3. d4 {[%emt 0:00:00]} cxd4 {[%emt 0:00:00]} 4. Nxd4 {[%emt 0:00:00]} Nf6 {[%emt 0:00:00]} 5. Nc3 {[%emt 0:00:00]} a6 {[%emt 0:00:00]} 6. Bd3 {[%emt 0:00:00]} Nc6 {[%emt 0:00:00]} 7. Nxc6 {[%emt 0:00:00] B90: Sicilian Najdorf: Unusual White 6th moves, 6 Be3 Ng4 and 6 Be3 e5.} bxc6 {[%emt 0:00:00]} 8. b3 {[%emt 0:00:00] seems to push 8.0-0 aside.} e5 {[%emt 0:00:00]} 9. Bb2 {[%emt 0:00:00] White is slightly better.} Be7 {[%emt 0:00:00] [#]} 10. Qd2 $146 {[%emt 0:00:00]} ({Predecessor:} 10. O-O Be6 11. Na4 Nd7 12. c4 c5 13. Be2 O-O 14. Bg4 Nf6 15. Bf5 Qc7 16. Qf3 {1-0 (75) Heberla,B (2566)-Mendonca,L (2472) Spilimbergo 2020}) 10... O-O {[%emt 0:07:55]} 11. O-O-O {[%emt 0:04:51]} Nd7 {[%emt 0:19:16] [#] aiming for ...Bg5.} 12. Kb1 {[%emt 0:03:32]} Nc5 {[%emt 0:00:48]} 13. f3 {[%emt 0:08:02]} Qc7 {[%emt 0:04:24]} 14. Bc4 {[%emt 0:04:03]} Be6 {[%emt 0:08:41]} 15. Bxe6 {[%emt 0:01:23]} Nxe6 {[%emt 0:01:17]} 16. Na4 {[%emt 0:01:47]} Rad8 {[%emt 0:08:01]} 17. h4 {[%emt 0:03:32]} f6 {[%emt 0:08:48]} 18. Qe2 {[%emt 0:16:16]} Qb7 {[%emt 0:00:37]} 19. g4 {[%emt 0:00:26]} d5 {[%emt 0:05:03]} 20. exd5 {[%emt 0:08:18]} (20. Bc1 $11) 20... cxd5 $15 {[%emt 0:00:48]} 21. Bc1 {[%emt 0:00:20]} Nd4 {[%emt 0:06:04]} 22. Qe3 {[%emt 0:04:16]} Qc6 $2 {[%emt 0:02:54][%mdl 8192] This costs Black the game.} (22... Rc8 $15 23. c3 {[#]} Nxb3 $1) 23. Rxd4 $18 {[%emt 0:03:18]} exd4 {[%emt 0:01:57]} 24. Qxe7 {[%emt 0:00:15]} Rfe8 {[%emt 0:05:09]} 25. Qc5 {[%emt 0:00:39]} Rc8 {[%emt 0:01:09]} 26. Qxc6 {[%emt 0:01:43]} ({Not} 26. Qxd4 Qxc2+ 27. Ka1 Re2 28. Qxd5+ (28. Bb2 Rd2 $14) 28... Kh8 $16) 26... Rxc6 {[%emt 0:00:03]} 27. Rh2 {[%emt 0:00:07] Inhibits Re2.} Re1 {[%emt 0:00:46]} 28. Nb2 {[%emt 0:00:14]} Rf1 {[%emt 0:00:14]} 29. f4 {[%emt 0:00:17]} Rg1 {[%emt 0:00:33]} 30. g5 {[%emt 0:00:37]} fxg5 {[%emt 0:00:05]} 31. fxg5 {[%emt 0:04:13]} ({Don't do} 31. hxg5 h6 32. Nd3 Rb6 $18) 31... Re6 {[%emt 0:01:21]} 32. Nd3 {[%emt 0:00:50]} Re4 {[%emt 0:00:27]} 33. Kb2 {[%emt 0:00:54]} Rgg4 {[%emt 0:01:00]} 34. h5 {[%emt 0:00:31][%cal Bh4h5,Bh5h6][%mdl 32]} Re6 {[%emt 0:00:26]} 35. h6 {[%emt 0:00:31]} g6 {[%emt 0:00:47]} (35... Rg1 $142 36. hxg7 Kxg7) 36. Rf2 {[%emt 0:00:45] White is clearly winning.} Rg1 {[%emt 0:01:26]} 37. Nc5 {[%emt 0:00:51]} Re5 {[%emt 0:01:30]} (37... Re7 $142 38. Bd2 Ra7) 38. Nd7 {[%emt 0:00:58][%csl Gd7][%cal Rf2f8]} Rf5 {[%emt 0:00:27] Against Rf8+} 39. Nf6+ {[%emt 0:00:10]} Kf7 {[%emt 0:00:07]} 40. Re2 {[%emt 0:02:20]} Rfxg5 {[%emt 0:02:51]} (40... Rff1 $142 41. Bd2 Rxf6 42. gxf6 d3 43. cxd3 Kxf6) 41. Bxg5 {[%emt 0:15:30]} Rxg5 {[%emt 0:15:01]} 42. Rf2 {[%emt 0:02:52]} Ke7 {[%emt 0:00:00]} 43. Nxh7 {[%emt 0:00:00]} Rh5 {[%emt 0:00:00]} 44. Nf6 {[%emt 0:00:00] Weighted Error Value: White=0.23 (precise) /Black=0.49} 1-0

[Event "GER-ch Youth-U16 2022"]
[Site "Willingen"]
[Date "2022.06.07"]
[Round "4.1"]
[White "Lutsko, Artem"]
[Black "Petrovskyi, Vadym"]
[Result "1/2-1/2"]
[ECO "E32"]
[WhiteElo "2392"]
[BlackElo "2330"]
[Annotator "TA"]
[PlyCount "60"]
[EventDate "2022.06.05"]
[EventType "swiss"]
[EventRounds "9"]
[EventCountry "GER"]
[SourceTitle "playchess.com"]
[Source "ChessBase"]
[SourceQuality "1"]
[TimeControl "40/4500+30:900+30"]

{[%evp 15,60,3,21,18,5,0,0,-7,2,13,0,17,17,0,0,0,0,0,0,0,0,0,0,0,0,0,0,0,0,0,0,0,0,0,0,0,0,0,0,0,0,0,0,0,0,0,0]} 1. d4 {[%emt 0:10:42]} Nf6 {[%emt 0:00:12]} 2. c4 {[%emt 0:00:03]} e6 {[%emt 0:00:05]} 3. Nc3 {[%emt 0:00:02]} Bb4 {[%emt 0:00:07]} 4. Qc2 {[%emt 0:00:01]} O-O {[%emt 0:00:09]} 5. Nf3 {[%emt 0:00:02]} d5 {[%emt 0:00:10]} 6. a3 {[%emt 0:00:02]} Bxc3+ {[%emt 0:00:12]} 7. Qxc3 {[%emt 0:00:03]} dxc4 {[%emt 0:00:24]} 8. Qxc4 {[%emt 0:00:04]} b6 {[%emt 0:00:17] The position is equal.} 9. Bg5 {[%emt 0:00:14] E36: Nimzo-Indian: Classical: 4...d5 5 a3.} Bb7 {[%emt 0:00:20]} 10. Rc1 {[%emt 0:00:14]} h6 {[%emt 0:00:07]} 11. Bh4 {[%emt 0:00:16]} c5 {[%emt 0:00:15]} 12. dxc5 {[%emt 0:00:03]} Nbd7 {[%emt 0:00:05] Prevents Ne5.} 13. c6 {[%emt 0:00:07]} Rc8 {[%emt 0:00:05][%cal Ba8c8,Bc8c6,Bc6c1,Bc1b1,Bb1e1][%mdl 32]} 14. Qa4 {[%emt 0:00:03] [#]} Qc7 $146 {[%emt 0:00:21][%cal Rb7c6]} ({Predecessor:} 14... Nb8 15. Ne5 Nxc6 16. Ng4 b5 17. Nxf6+ Qxf6 18. Bxf6 bxa4 19. Bc3 Ne7 20. f3 Nd5 {½-½ (47) Yu,Y (2763)-Vitiugov,N (2732) Khanty-Mansiysk 2019}) 15. Qxa7 {[%emt 0:00:09]} Ne4 {[%emt 0:00:12][%cal Od7c5] [#] ...Ndc5! is the strong threat.} 16. Bg3 {[%emt 0:00:03]} Qxc6 {[%emt 0:00:06]} 17. Rxc6 {[%emt 0:00:02]} Rxc6 {[%emt 0:00:03][%cal Rc6c1]} 18. e3 {[%emt 0:00:04]} Rc1+ {[%emt 0:00:12]} 19. Ke2 {[%emt 0:00:03]} Ndc5 {[%emt 0:00:10] [#] aiming for ...Ba6+.} 20. Nd4 {[%emt 0:00:03] Strongly threatening b4.} Rc8 {[%emt 0:00:27]} 21. Qxb6 {[%emt 0:00:04]} Rb1 {[%emt 0:00:16]} 22. Qb4 {[%emt 0:00:02] Prevents Nc3+.} f5 $1 {[%emt 0:00:08] And now ...Ba6+ would win.} 23. Be5 {[%emt 0:00:03][%cal Og2g4] Threatens to win with g4!} Nd3 {[%emt 0:00:15]} 24. Qxb7 {[%emt 0:00:04][%csl Ge5][%cal Rb7g7]} Re1+ $1 {[%emt 0:00:05]} 25. Kf3 {[%emt 0:00:01][%csl Ge5][%cal Rb7g7]} (25. Kxd3 $2 {leads to mate.} Rd1+ 26. Ke2 Rd2+ 27. Kf3 Rxf2#) 25... Nxe5+ {[%emt 0:00:08] Pair of Knights!} 26. Kf4 {[%emt 0:00:02]} Ng6+ {[%emt 0:00:08]} 27. Kf3 {[%emt 0:00:01]} Nh4+ {[%emt 0:00:09]} 28. Kf4 {[%emt 0:00:04]} Ng6+ {[%emt 0:00:05]} 29. Kf3 {[%emt 0:00:01]} Ne5+ {[%emt 0:00:08]} 30. Kf4 {[%emt 0:00:02]} Ng6+ {[%emt 0:00:07] An even fight not without its subleties.  Weighted Error Value: White=0.02 (flawless) /Black=0.00 (flawless)} 1/2-1/2

[Event "GER-ch Youth-U16 2022"]
[Site "Willingen"]
[Date "2022.06.07"]
[Round "4.2"]
[White "Farokhi, Keyvan"]
[Black "Mimkes, Antal"]
[Result "1-0"]
[ECO "A04"]
[WhiteElo "2360"]
[BlackElo "1696"]
[Annotator "TA"]
[PlyCount "83"]
[EventDate "2022.06.05"]
[EventType "swiss"]
[EventRounds "9"]
[EventCountry "GER"]
[SourceTitle "playchess.com"]
[Source "ChessBase"]
[SourceQuality "1"]
[TimeControl "40/4500+30:900+30"]

{[%evp 17,83,66,76,60,44,19,32,33,61,64,67,63,63,-13,57,71,92,97,92,28,40,27,82,60,109,59,151,149,137,83,254,230,260,240,372,409,413,377,554,394,396,403,732,720,925,938,905,879,880,872,929,984,29969,6216,29985,29986,29984,1852,29985,1920,1888,1887,5608,6064,29985,29976,29985,5343]} 1. Nf3 {[%emt 0:00:00]} f5 {[%emt 0:00:00]} 2. c4 {[%emt 0:00:00]} Nf6 {[%emt 0:00:00]} 3. Nc3 {[%emt 0:00:00]} g6 {[%emt 0:00:00]} 4. g3 {[%emt 0:00:00]} d6 {[%emt 0:00:00]} 5. d4 {[%emt 0:00:00]} Bg7 {[%emt 0:00:00]} 6. Bg2 {[%emt 0:00:00]} O-O {[%emt 0:00:00]} 7. O-O {[%emt 0:00:00]} Qe8 {[%emt 0:00:00]} 8. d5 {[%emt 0:06:23]} e5 {[%emt 0:00:00]} 9. dxe6 {[%emt 0:00:38]} Bxe6 {[%emt 0:00:00]} 10. Nd4 {[%emt 0:05:01] A87: Dutch Defence: Leningrad System: 5 Nf3.} Bc8 {[%emt 0:02:08]} (10... Nc6 $2 11. Nxe6 Qxe6 12. Bd5 Nxd5 13. cxd5 $18) 11. Qb3 {[%emt 0:09:07]} c6 {[%emt 0:09:29]} 12. Rd1 {[%emt 0:01:35] aiming for Bf4. White is slightly better.} Na6 {[%emt 0:03:55]} 13. Bf4 {[%emt 0:00:47]} Nc5 {[%emt 0:08:15] [#]} 14. Qa3 $146 {[%emt 0:07:40]} ({Predecessor:} 14. Qc2 Qe7 15. Nxc6 bxc6 16. Bxd6 Qe6 17. Bxc5 Re8 18. Nb5 Qe5 {1-0 (18) Sargissian,G (2667)-Wagener,A (2262) Mainz 2006}) 14... Nce4 {[%emt 0:15:21]} 15. Bxd6 {[%emt 0:04:07] [#]} (15. e3 $14) 15... Nxd6 {[%emt 0:03:39]} (15... Nxf2 $1 $11 16. Kxf2 Ng4+ 17. Ke1 (17. Kg1 {leads to mate.} Qe3+ 18. Kh1 Nf2+ 19. Kg1 Nh3+ 20. Kh1 Qg1+ 21. Rxg1 Nf2#) 17... Qe3 18. Nxc6 Qg1+ 19. Kd2 Qxg2 20. Ne7+ (20. Bxf8 Bxf8 21. Ne7+ Kf7 $11) 20... Kf7) 16. Qxd6 $14 {[%emt 0:00:09][%cal Rd4c6] Threatens to win with Nxc6!} Ne4 {[%emt 0:01:25]} 17. Nxe4 {[%emt 0:14:11]} fxe4 {[%emt 0:01:26] [#]} 18. Qa3 {[%emt 0:00:42]} (18. e3 $1 $16) 18... Qf7 $11 {[%emt 0:03:54][%csl LRc4,LRf2] ...Bxd4 is the strong threat.} 19. Qe3 {[%emt 0:01:04] Active counter play!} Bf5 {[%emt 0:07:24]} ({Weaker is} 19... c5 20. Nb5 $16) (19... Bg4 $11 {keeps the balance.}) 20. Rac1 {[%emt 0:04:02]} ({Not} 20. Bxe4 $2 Bxe4 21. Qxe4 Qxf2+ 22. Kh1 Rae8 $19) 20... h5 {[%emt 0:04:58]} (20... Bg4 $14) 21. b3 {[%emt 0:02:45]} (21. Nxf5 $16 gxf5 22. Qg5) 21... Kh7 {[%emt 0:00:57]} ({Better is} 21... Bg4 $14) 22. Nxf5 $16 {[%emt 0:03:22]} gxf5 {[%emt 0:01:16]} 23. Qd2 {[%emt 0:01:59]} ({White should play} 23. Rd6) 23... Rad8 $2 {[%emt 0:04:56] A mistake that costs the game.} (23... h4 $16 {was worth a try.}) 24. Qxd8 $18 {[%emt 0:04:29]} Rxd8 {[%emt 0:00:13]} 25. Rxd8 {[%emt 0:00:05]} e3 {[%emt 0:00:47]} (25... Bf6 $142) 26. Rcd1 {[%emt 0:02:26]} exf2+ {[%emt 0:01:48]} 27. Kxf2 {[%emt 0:00:22]} Qe7 {[%emt 0:06:14]} (27... Qf6 $142 28. R1d7 h4) 28. R8d7 {[%emt 0:01:46]} Qc5+ {[%emt 0:01:43]} 29. Kf1 {[%emt 0:00:23]} h4 {[%emt 0:01:22]} (29... Qe5 $142 30. Rxb7 Kg6) 30. Rxb7 {[%emt 0:01:11]} hxg3 {[%emt 0:01:13]} 31. hxg3 {[%emt 0:00:12] Strongly threatening Rdd7.} Kg6 {[%emt 0:02:13]} 32. Rc7 {[%emt 0:02:50]} Qe5 {[%emt 0:02:31]} 33. Rxc6+ {[%emt 0:00:55]} Kg5 {[%emt 0:00:37]} 34. Rdd6 {[%emt 0:04:25] Intending Rg6+ and mate.} Qa1+ {[%emt 0:01:55]} 35. Kf2 {[%emt 0:00:09] Threatening mate with Rg6+.} f4 {[%emt 0:02:18]} 36. Rg6+ {[%emt 0:01:28]} Kf5 {[%emt 0:00:08]} 37. g4+ {[%emt 0:00:18]} Ke5 {[%emt 0:00:21]} 38. Rce6+ {[%emt 0:00:09]} (38. Rcd6 $142 Qd4+ 39. Rxd4 Kxd4 40. Rxg7 a5 41. Rd7+ Kc5 42. g5 Kb4 43. g6) 38... Kd4 {[%emt 0:00:13]} 39. Rxg7 {[%emt 0:00:11]} Qc1 {[%emt 0:00:56]} 40. Re4+ {[%emt 0:00:19]} Kc5 {[%emt 0:00:32]} 41. Rf7 {[%emt 0:15:35]} Qd2 {[%emt 0:16:16]} 42. Rfxf4 {[%emt 0:00:20] Weighted Error Value: White=0.27 (precise) /Black=1.01} (42. a3 $142 f3 43. b4+ Kd6 44. Bxf3 Qb2 45. c5+ Kd5 46. Re3+ Kc4 47. Rf4+ Qd4 48. Rxd4+ Kxd4 49. c6) 1-0